Workbook

Sheet 本级基金支出表11
A2: 2019年达州市通川区政府性基金支出决算表
F3: 单位：万元
A4: 科目名称 | B4: 年初预算数 | C4: 变动预算数 | D4: 决算数 | E4: 为预算 | F4: 为上年决算 | G4: 上年决算数
A5: 一、国家电影事业发展专项资金安排的支出 | C5: 51 | D5: 51
A6: 二、旅游发展基金支出
A7: 三、大中型水库移民后期扶持基金支出 | C7: 341 | D7: 341
A8: 四、国有土地使用权出让收入及对应专项债务收入安排的支出 | B8: 218,078 | C8: 176,464 | D8: 176,464 | E8: =D8/B8 -> 80.92% | F8: =D8/G8 -> 78.54% | G8: 224,685
A9: 五、国有土地收益基金及对应专项债务收入安排的支出 | B9: 13,500 | C9: 7,311 | D9: 7,311 | E9: =D9/B9 -> 54.16% | F9: =D9/G9 -> 120.39% | G9: 6,073
A10: 六、农业土地开发资金安排的支出 | B10: 13,500 | C10: 209 | D10: 209 | E10: =D10/B10 -> 1.55% | F10: =D10/G10 -> 213.27% | G10: 98
A11: 七、城市基础设施配套费安排的支出 | B11: 1,000 | C11: 14,992 | D11: 14,992 | E11: =D11/B11 -> 1499.20% | F11: =D11/G11 -> 689.92% | G11: 2,173
A12: 八、污水处理费安排的支出
A13: 九、土地储备专项债券收入安排的支出
A14: 十、棚户区改造专项债券收入安排的支出 | C14: 60,100 | D14: 60,100
A15: 十一、大中型水库库区基金安排的支出 | C15: 248 | D15: 248 | F15: =D15/G15 -> 43.36% | G15: 572
A16: 十二、国家重大水利工程建设基金安排的支出 | C16: 39 | D16: 39
A17: 十三、民航发展基金支出
A18: 十四、其他政府性基金及对应专项债务收入安排的支出
A19: 十五、彩票公益金安排的支出 | C19: 931 | D19: 931 | F19: =D19/G19 -> 82.76% | G19: 1,125
A20: 十六、债务付息支出 | B20: 3,856 | C20: 3,856 | D20: 3,856 | E20: =D20/B20 -> 100.00% | F20: =D20/G20 -> 169.20% | G20: 2,279
A21: 十七、债务发行费用支出 | B21: 66 | C21: 66 | D21: 66 | E21: =D21/B21 -> 100.00% | F21: =D21/G21 -> 150.00% | G21: 44
A23: 政府性基金预算支出合计 | B23: =SUM(B5:B22) -> 250,000 | C23: =SUM(C5:C22) -> 264,608 | D23: =SUM(D5:D22) -> 264,608 | E23: =D23/B23 -> 105.84% | F23: =D23/G23 -> 111.63% | G23: =SUM(G5:G22) -> 237,049
